fUSD/lending_fUSD_20240331
["ID","MTS","AMOUNT","RATE_DAILY","PERIOD"]
[321127404,1711901470922,-500.0,0.0005589,120]
[321127405,1711901470931,-687.06270278,0.0005589,120]
[321127406,1711901470940,-500.0,0.0005589,120]
[321127407,1711901470949,-500.0,0.0005589,120]
[321127408,1711901470958,-500.0,0.0005589,120]
[321127409,1711901470968,-500.0,0.0005589,120]
[321127410,1711901470977,-500.0,0.0005589,120]
[321127411,1711901470986,-500.0,0.0005589,120]
[321127412,1711901470996,-500.0,0.0005589,120]
[321127413,1711901471006,-500.0,0.0005589,120]
[321127414,1711901471018,-500.0,0.0005589,120]
[321127415,1711901471030,-500.0,0.0005589,120]
[321127416,1711901471039,-500.0,0.0005589,120]
[321127417,1711901471050,-583.26,0.0005589,120]
[321127418,1711901471060,-500.0,0.0005589,120]
[321127419,1711901471071,-373.81879963,0.0005589,120]
[321127420,1711901471080,-500.0,0.0005589,120]
[321127421,1711901471089,-500.0,0.0005589,120]
[321127422,1711901471098,-502.35,0.0005589,120]
[321127423,1711901471108,-376.0,0.0005589,120]
[321127424,1711901471117,-337.44,0.0005589,120]
[321127425,1711901471127,-500.0,0.0005589,120]
[321127426,1711901471136,-210.55,0.0005589,120]
[321127427,1711901471145,-500.0,0.0005589,120]
[321127428,1711901471154,-500.0,0.0005589,120]
[321127429,1711901471163,-296.0,0.0005589,120]
[321127430,1711901471173,-500.0,0.0005589,2]
[321127431,1711901471183,-500.0,0.0005589,120]
[321127432,1711901471193,-500.0,0.0005589,120]
[321127433,1711901471202,-500.0,0.0005589,120]
[321127434,1711901471210,-185.64,0.0005589,120]
[321127435,1711901471219,-500.0,0.0005589,120]
[321127436,1711901471228,-500.0,0.0005589,120]
[321127437,1711901471238,-500.0,0.0005589,120]
[321127438,1711901471247,-500.0,0.0005589,120]
[321127439,1711901471257,-500.0,0.0005589,120]
[321127440,1711901471266,-635.37008245,0.0005589,120]
[321127441,1711901471276,-500.0,0.0005589,120]
[321127442,1711901471286,-500.0,0.0005589,120]
[321127443,1711901471295,-780.08,0.0005589,120]
[321127444,1711901471305,-309.29132212,0.0005589,120]
[321127445,1711901471314,-500.0,0.0005589,120]
[321127446,1711901471325,-500.0,0.0005589,120]
[321127447,1711901471334,-500.0,0.0005589,120]
[321127448,1711901471344,-500.0,0.0005589,120]
[321127449,1711901471354,-500.0,0.0005589,120]
[321127450,1711901471363,-500.0,0.0005589,120]
[321127451,1711901471373,-239.7,0.0005589,120]
[321127452,1711901471382,-500.0,0.0005589,120]
[321127453,1711901471391,-500.0,0.0005589,120]
[321127454,1711901471401,-500.0,0.0005589,120]
[321127455,1711901471410,-500.0,0.0005589,120]
[321127456,1711901471419,-252.88,0.0005589,120]
[321127457,1711901471428,-216.24,0.0005589,120]
[321127458,1711901471438,-500.0,0.0005589,120]
[321127459,1711901471447,-500.0,0.0005589,120]
[321127460,1711901471457,-164.48596786,0.0005589,120]
[321127461,1711901471466,-500.0,0.0005589,120]
[321127462,1711901471475,-500.0,0.0005589,120]
[321127463,1711901471485,-500.0,0.0005589,120]
[321127464,1711901471494,-500.0,0.0005589,120]
[321127465,1711901471504,-500.0,0.0005589,120]
[321127466,1711901471513,-500.0,0.0005589,120]
[321127467,1711901471523,-435.16,0.0005589,120]
[321127468,1711901471533,-500.0,0.0005589,120]
[321127469,1711901471543,-500.0,0.0005589,120]
[321127470,1711901471552,-500.0,0.0005589,120]
[321127471,1711901471561,-478.98,0.0005589,120]
[321127472,1711901471570,-500.0,0.0005589,120]
[321127473,1711901471579,-500.0,0.0005589,50]
[321127474,1711901471589,-500.0,0.0005589,120]
[321127475,1711901471598,-402.97,0.0005589,120]
[321127476,1711901471611,-359.3,0.0005589,120]
[321127477,1711901471621,-485.76206565,0.0005589,120]
[321127478,1711901471631,-500.0,0.0005589,120]
[321127479,1711901471642,-860.04,0.0005589,120]
[321127480,1711901471651,-214.24,0.0005589,120]
[321127481,1711901471660,-500.0,0.0005589,120]
[321127482,1711901471670,-500.0,0.0005589,120]
[321127483,1711901471680,-500.0,0.0005589,120]
[321127484,1711901471689,-500.0,0.0005589,120]
[321127485,1711901471699,-561.72495094,0.0005589,120]
[321127486,1711901471708,-427.5,0.0005589,120]
[321127487,1711901471718,-500.0,0.0005589,120]
[321127488,1711901471727,-500.0,0.0005589,120]
[321127489,1711901471737,-449.99,0.0005589,120]
[321127490,1711901471746,-500.0,0.0005589,120]
[321127491,1711901471754,-500.0,0.0005589,120]
[321127492,1711901471763,-500.0,0.0005589,120]
[321127493,1711901471773,-500.0,0.0005589,120]
[321127494,1711901471782,-500.0,0.0005589,120]
[321127495,1711901471792,-500.0,0.0005589,120]
[321127496,1711901471801,-500.0,0.0005589,120]
[321127497,1711901471810,-500.0,0.0005589,120]
[321127498,1711901471819,-500.0,0.0005589,120]
[321127499,1711901471830,-500.0,0.0005589,120]
[321127500,1711901471839,-500.0,0.0005589,120]
[321127501,1711901471850,-500.0,0.0005589,120]
[321127502,1711901471860,-500.0,0.0005589,120]
[321127503,1711901471870,-306.92,0.0005589,120]
[321127504,1711901471879,-500.0,0.0005589,120]
[321127505,1711901471888,-838.17,0.0005589,120]
[321127506,1711901471897,-500.0,0.0005589,120]
[321127507,1711901471907,-500.0,0.0005589,120]
[321127508,1711901471917,-500.0,0.0005589,120]
[321127509,1711901471926,-500.0,0.0005589,120]
[321127510,1711901471935,-500.0,0.0005589,120]
[321127511,1711901471944,-500.0,0.0005589,120]
[321127512,1711901471953,-500.0,0.0005589,120]
[321127513,1711901471963,-500.0,0.0005589,120]
[321127514,1711901471972,-500.0,0.0005589,120]
[321127515,1711901471981,-721.29,0.0005589,120]
[321127516,1711901471990,-500.0,0.0005589,120]
[321127517,1711901472000,-500.0,0.0005589,120]
[321127518,1711901472010,-500.0,0.0005589,120]
[321127519,1711901472020,-500.0,0.0005589,120]
[321127520,1711901472029,-586.0,0.0005589,120]
[321127521,1711901472039,-500.0,0.0005589,120]
[321127522,1711901472049,-1795.72,0.0005589,21]
[321127523,1711901472210,-500.0,0.0005589,120]
[321127524,1711901472226,-500.0,0.0005589,120]
[321127525,1711901472236,-500.0,0.0005589,120]
[321127526,1711901472245,-547.94,0.0005589,120]
[321127527,1711901472254,-1222.41,0.0005589,120]
[321127528,1711901472263,-328.04,0.0005589,120]
[321127529,1711901472273,-589.13,0.0005589,120]
[321127530,1711901472282,-283.57118945,0.0005589,120]
[321127531,1711901472292,-1633.48,0.0005589,120]
[321127532,1711901472302,-500.0,0.0005589,120]
[321127533,1711901472312,-500.0,0.0005589,120]
[321127534,1711901472323,-348.3,0.0005589,120]
[321127535,1711901472333,-500.0,0.0005589,120]
[321127536,1711901472343,-500.0,0.0005589,120]
[321127537,1711901472353,-500.0,0.0005589,120]
[321127538,1711901472362,-500.0,0.0005589,120]
[321127539,1711901472372,-209.4,0.0005589,120]
[321127540,1711901472382,-500.0,0.0005589,120]
[321127541,1711901472392,-500.0,0.0005589,120]
[321127542,1711901472402,-500.0,0.0005589,120]
[321127543,1711901472411,-2610.3,0.0005589,120]
[321127544,1711901472421,-957.79,0.0005589,120]
[321127545,1711901472431,-500.0,0.0005589,120]
[321127546,1711901472440,-832.75,0.0005589,120]
[321127547,1711901472450,-500.0,0.0005589,120]
[321127548,1711901472460,-814.32,0.0005589,120]
[321127549,1711901472470,-500.0,0.0005589,120]
[321127550,1711901472479,-500.0,0.0005589,120]
[321127551,1711901472489,-625.04248172,0.0005589,120]
[321127552,1711901472499,-1000.0,0.0005589,120]
[321127553,1711901472508,-581.07,0.0005589,120]
[321127554,1711901472518,-2279.79,0.0005589,120]
[321127555,1711901472527,-500.0,0.0005589,120]
[321127556,1711901472537,-500.0,0.0005589,120]
[321127557,1711901472546,-500.0,0.0005589,120]
[321127558,1711901472556,-500.0,0.0005589,120]
[321127559,1711901472565,-500.0,0.0005589,120]
[321127560,1711901472576,-500.0,0.0005589,120]
[321127561,1711901472585,-500.0,0.0005589,120]
[321127562,1711901472595,-500.0,0.0005589,120]
[321127563,1711901472606,-1846.66,0.0005589,120]
[321127564,1711901472616,-833.33,0.0005589,120]
[321127565,1711901472626,-500.0,0.0005589,120]
[321127566,1711901472635,-500.0,0.0005589,120]
[321127567,1711901472645,-5170.47,0.0005589,120]
[321127568,1711901472654,-2760.2,0.0005589,120]
[321127569,1711901472663,-1734.48,0.0005589,120]
[321127570,1711901472673,-8725.15,0.0005589,120]
[321127571,1711901472683,-1268.49,0.0005589,120]
[321127572,1711901472693,-500.0,0.0005589,120]
[321127573,1711901472702,-500.0,0.0005589,120]
[321127574,1711901472712,-604.16217448,0.0005589,120]
[321127575,1711901472721,-1226.84,0.0005589,120]
[321127576,1711901472731,-326.73,0.0005589,120]
[321127577,1711901472740,-4548.58,0.0005589,120]
[321127578,1711901472750,-500.0,0.0005589,120]
[321127579,1711901472760,-500.0,0.0005589,120]
[321127580,1711901472770,-1479.87,0.0005589,120]
[321127581,1711901472779,-500.0,0.0005589,120]
[321127582,1711901472789,-1697.5,0.0005589,120]
[321127583,1711901472799,-500.0,0.0005589,120]
[321127584,1711901472809,-2334.24,0.0005589,120]
[321127585,1711901472818,-500.0,0.0005589,120]
[321127586,1711901472829,-2071.17,0.0005589,120]
[321127587,1711901472839,-500.0,0.0005589,120]
[321127588,1711901472849,-500.0,0.0005589,120]
[321127589,1711901472858,-1307.1,0.0005589,120]
[321127590,1711901472867,-2606.99,0.0005589,120]
[321127591,1711901472877,-500.0,0.0005589,120]
[321127592,1711901472887,-500.0,0.0005589,120]
[321127593,1711901472896,-500.0,0.0005589,120]
[321127594,1711901472906,-500.0,0.0005589,120]
[321127595,1711901472916,-1383.62,0.0005589,120]
[321127596,1711901472925,-500.0,0.0005589,120]
[321127597,1711901472935,-3025.45,0.0005589,120]
[321127598,1711901472945,-500.0,0.0005589,120]
[321127599,1711901472954,-500.0,0.0005589,120]
[321127600,1711901472964,-5933.46,0.0005589,120]
[321127601,1711901472974,-500.0,0.0005589,120]
[321127602,1711901472983,-554.92,0.0005589,120]
[321127603,1711901472993,-4835.56,0.0005589,120]
[321127604,1711901473003,-1114.13,0.0005589,120]
[321127605,1711901473014,-456.6,0.0005589,120]
[321127606,1711901473023,-500.0,0.0005589,120]
[321127607,1711901473032,-500.0,0.0005589,120]
[321127608,1711901473042,-1551.31,0.0005589,120]
[321127609,1711901473051,-500.0,0.0005589,120]
[321127610,1711901473060,-500.0,0.0005589,120]
[321127611,1711901473069,-1225.51,0.0005589,120]
[321127612,1711901473080,-500.0,0.0005589,120]
[321127613,1711901473089,-1642.24,0.0005589,120]
[321127614,1711901473098,-1400.86,0.0005589,120]
[321127615,1711901473109,-5107.76,0.0005589,120]
[321127616,1711901473118,-426.77,0.0005589,120]
[321127617,1711901473128,-7108.28,0.0005589,120]
[321127618,1711901473138,-500.0,0.0005589,120]
[321127619,1711901473147,-500.0,0.0005589,120]
[321127620,1711901473156,-500.0,0.0005589,120]
[321127621,1711901473166,-500.0,0.0005589,120]
[321127622,1711901473175,-500.0,0.0005589,120]
[321127623,1711901473184,-1267.36,0.0005589,120]
[321127624,1711901473193,-500.0,0.0005589,120]
[321127625,1711901473203,-500.0,0.0005589,7]
[321127626,1711901473213,-1487.37,0.0005589,120]
[321127627,1711901473222,-977.83,0.0005589,120]
[321127628,1711901473231,-209.57,0.0005589,120]
[321127629,1711901473241,-500.0,0.0005589,120]
[321127630,1711901473250,-500.0,0.0005589,120]
[321127631,1711901473259,-2308.38,0.0005589,120]
[321127632,1711901473270,-1843.78,0.0005589,120]
[321127633,1711901473279,-500.0,0.0005589,120]
[321127634,1711901473289,-500.0,0.0005589,120]
[321127635,1711901473298,-500.0,0.0005589,120]
[321127636,1711901473308,-500.0,0.0005589,120]
[321127637,1711901473317,-500.0,0.0005589,120]
[321127638,1711901473327,-639.86932033,0.0005589,120]
[321127639,1711901473337,-1933.04,0.0005589,120]
[321127640,1711901473347,-500.0,0.0005589,120]
[321127641,1711901473357,-500.0,0.0005589,120]
[321127642,1711901473366,-500.0,0.0005589,120]
[321127643,1711901473376,-500.0,0.0005589,120]
[321127644,1711901473385,-925.52,0.0005589,120]
[321127645,1711901473394,-500.0,0.0005589,16]
[321127646,1711901473404,-4054.58,0.0005589,120]
[321127647,1711901473413,-404.32,0.0005589,120]
[321127648,1711901473423,-3182.14,0.0005589,120]
[321127649,1711901473432,-500.0,0.0005589,120]
[321127650,1711901473442,-500.0,0.0005589,120]
[321127651,1711901473451,-1284.39,0.0005589,120]
[321127652,1711901473461,-500.0,0.0005589,120]
[321127653,1711901473471,-299.76780036,0.0005589,120]
[321127654,1711901473481,-500.0,0.0005589,120]
[321127655,1711901473490,-9137.65,0.0005589,120]
[321127656,1711901473500,-521.67,0.0005589,120]
[321127657,1711901473509,-9984.85,0.0005589,120]
[321127658,1711901473518,-500.0,0.0005589,120]
[321127659,1711901473527,-731.7,0.0005589,120]
[321127660,1711901473536,-974.58,0.0005589,120]
[321127661,1711901473545,-505.42,0.0005589,120]
[321127662,1711901473555,-463.67,0.0005589,120]
[321127663,1711901473564,-999.0,0.000559,2]
[321127664,1711901473575,-1139.0,0.00056053,120]
[321127665,1711901473584,-154.52845761,0.00056125,120]
[321127666,1711901473593,-151.94637423,0.00056154,120]
[321127667,1711901473603,-1474.18,0.00056164,120]
[321127668,1711901473617,-500.0,0.00056164,120]
[321127669,1711901473626,-500.0,0.00056164,120]
[321127670,1711901473635,-500.0,0.00056164,120]
[321127671,1711901473644,-355.76,0.00056164,120]
[321127672,1711901473654,-556.04,0.00056164,120]
[321127673,1711901473663,-956.39,0.00056164,120]
[321127674,1711901473673,-882.73,0.00056164,120]
[321127675,1711901473686,-500.0,0.00056164,120]
[321127676,1711901473696,-859.93,0.00056164,120]
[321127677,1711901473706,-737.17,0.00056164,120]
[321127678,1711901473715,-759.11,0.00056164,120]
[321127679,1711901473725,-623.38759805,0.00056164,120]
[321127680,1711901473735,-500.0,0.00056164,120]
[321127681,1711901473745,-500.0,0.00056164,120]
[321127682,1711901473754,-500.0,0.00056164,120]
[321127683,1711901473764,-500.0,0.00056164,120]
[321127684,1711901473774,-880.58,0.00056164,120]
[321127685,1711901473783,-500.0,0.00056164,120]
[321127686,1711901473794,-509.81,0.00056164,120]
[321127687,1711901473804,-500.0,0.00056164,120]
[321127688,1711901473814,-500.0,0.00056164,120]
[321127689,1711901473823,-150.0,0.00056164,120]
[321127690,1711901473833,-500.0,0.00056164,120]
[321127691,1711901473843,-500.0,0.00056164,120]
[321127692,1711901473853,-500.0,0.00056164,120]
[321127693,1711901473862,-500.0,0.00056164,120]
[321127694,1711901473871,-500.0,0.00056164,120]
[321127695,1711901473881,-500.0,0.00056164,120]
[321127696,1711901473890,-500.0,0.00056164,120]
[321127697,1711901473900,-500.0,0.00056164,120]
[321127698,1711901473909,-500.0,0.00056164,120]
[321127699,1711901473919,-500.0,0.00056164,120]
[321127700,1711901473929,-500.0,0.00056164,120]
[321127701,1711901473939,-500.0,0.00056164,120]
[321127702,1711901473949,-616.69,0.00056164,120]
[321127703,1711901473959,-625.70741849,0.00056164,120]
[321127704,1711901473968,-500.0,0.00056164,120]
[321127705,1711901473978,-500.0,0.00056164,120]
[321127706,1711901473987,-500.0,0.00056164,120]
[321127707,1711901473997,-583.26,0.00056164,120]
[321127708,1711901474006,-500.0,0.00056164,120]
[321127709,1711901474015,-500.0,0.00056164,120]
[321127710,1711901474025,-500.0,0.00056164,120]
[321127711,1711901474035,-502.35,0.00056164,120]
[321127712,1711901474045,-500.0,0.00056164,120]
[321127713,1711901474055,-500.0,0.00056164,120]
[321127714,1711901474064,-500.0,0.00056164,120]
[321127715,1711901474073,-500.0,0.00056164,2]
[321127716,1711901474083,-500.0,0.00056164,120]
[321127717,1711901474092,-500.0,0.00056164,120]
[321127718,1711901474102,-500.0,0.00056164,120]
[321127719,1711901474111,-500.0,0.00056164,120]
[321127720,1711901474121,-308.18,0.00056164,120]
[321127721,1711901474130,-500.0,0.00056164,120]
[321127722,1711901474139,-500.0,0.00056164,120]
[321127723,1711901474150,-500.0,0.00056164,120]
[321127724,1711901474159,-500.0,0.00056164,120]
[321127725,1711901474169,-500.0,0.00056164,120]
[321127726,1711901474178,-780.08,0.00056164,120]
[321127727,1711901474187,-500.0,0.00056164,120]
[321127728,1711901474197,-317.84,0.00056164,120]
[321127729,1711901474207,-500.0,0.00056164,120]
[321127730,1711901474218,-500.0,0.00056164,120]
[321127731,1711901474227,-500.0,0.00056164,120]
[321127732,1711901474237,-500.0,0.00056164,120]
[321127733,1711901474246,-500.0,0.00056164,120]
[321127734,1711901474255,-500.0,0.00056164,120]
[321127735,1711901474265,-500.0,0.00056164,120]
[321127736,1711901474274,-500.0,0.00056164,120]
[321127737,1711901474284,-500.0,0.00056164,120]
[321127738,1711901474294,-500.0,0.00056164,120]
[321127739,1711901474303,-500.0,0.00056164,120]
[321127740,1711901474313,-500.0,0.00056164,120]
[321127741,1711901474323,-500.0,0.00056164,120]
[321127742,1711901474332,-500.0,0.00056164,120]
[321127743,1711901474341,-336.95318326,0.00056164,120]
[321127744,1711901474350,-500.0,0.00056164,120]
[321127745,1711901474360,-500.0,0.00056164,120]
[321127746,1711901474369,-500.0,0.00056164,120]
[321127747,1711901474378,-500.0,0.00056164,120]
[321127748,1711901474387,-500.0,0.00056164,120]
[321127749,1711901474397,-500.0,0.00056164,50]
[321127750,1711901474406,-500.0,0.00056164,120]
[321127751,1711901474415,-500.0,0.00056164,120]
[321127752,1711901474425,-860.04,0.00056164,120]
[321127753,1711901474435,-500.0,0.00056164,120]
[321127754,1711901474445,-500.0,0.00056164,120]
[321127755,1711901474454,-484.69,0.00056164,120]
[321127756,1711901474463,-210.28,0.00056164,120]
[321127757,1711901474473,-500.0,0.00056164,120]
[321127758,1711901474483,-500.0,0.00056164,120]
[321127759,1711901474492,-500.0,0.00056164,120]
[321127760,1711901474501,-500.0,0.00056164,120]
[321127761,1711901474511,-500.0,0.00056164,120]
[321127762,1711901474521,-500.0,0.00056164,120]
[321127763,1711901474531,-500.0,0.00056164,120]
[321127764,1711901474540,-277.13,0.00056164,120]
[321127765,1711901474550,-644.31806063,0.00056164,120]
[321127766,1711901474560,-500.0,0.00056164,120]
[321127767,1711901474570,-500.0,0.00056164,120]
[321127768,1711901474637,-500.0,0.00056164,120]
[321127769,1711901474648,-500.0,0.00056164,120]
[321127770,1711901474658,-500.0,0.00056164,120]
[321127771,1711901474668,-838.17,0.00056164,120]
[321127772,1711901474678,-412.77,0.00056164,120]
[321127773,1711901474689,-500.0,0.00056164,120]
[321127774,1711901474700,-500.0,0.00056164,120]
[321127775,1711901474709,-500.0,0.00056164,120]
[321127776,1711901474718,-500.0,0.00056164,120]
[321127777,1711901474728,-500.0,0.00056164,120]
[321127778,1711901474738,-500.0,0.00056164,120]
[321127779,1711901474749,-510.09,0.00056164,120]
[321127780,1711901474759,-500.0,0.00056164,120]
[321127781,1711901474769,-721.29,0.00056164,120]
[321127782,1711901474778,-500.0,0.00056164,120]
[321127783,1711901474787,-500.0,0.00056164,120]
[321127784,1711901474797,-500.0,0.00056164,120]
[321127785,1711901474806,-500.0,0.00056164,120]
[321127786,1711901474814,-586.0,0.00056164,120]
[321127787,1711901474823,-500.0,0.00056164,120]
[321127788,1711901474832,-1795.72,0.00056164,21]
[321127789,1711901474841,-500.0,0.00056164,120]
[321127790,1711901474851,-477.45,0.00056164,120]
[321127791,1711901474861,-297.81,0.00056164,120]
[321127792,1711901474871,-1222.41,0.00056164,120]
[321127793,1711901474880,-589.13,0.00056164,120]
[321127794,1711901474889,-1633.48,0.00056164,120]
[321127795,1711901474898,-500.0,0.00056164,120]
[321127796,1711901474907,-238.35,0.00056164,120]
[321127797,1711901474916,-526.31544577,0.00056164,120]
[321127798,1711901474926,-500.0,0.00056164,120]
[321127799,1711901474935,-500.0,0.00056164,120]
[321127800,1711901474944,-500.0,0.00056164,120]
[321127801,1711901474953,-500.0,0.00056164,120]
[321127802,1711901474962,-500.0,0.00056164,120]
[321127803,1711901474971,-500.0,0.00056164,120]
[321127804,1711901474980,-2610.3,0.00056164,120]
[321127805,1711901474989,-957.79,0.00056164,120]
[321127806,1711901474998,-500.0,0.00056164,120]
[321127807,1711901475007,-832.75,0.00056164,120]
[321127808,1711901475015,-500.0,0.00056164,120]
[321127809,1711901475024,-814.32,0.00056164,120]
[321127810,1711901475033,-500.0,0.00056164,120]
[321127811,1711901475042,-500.0,0.00056164,120]
[321127812,1711901475051,-581.07,0.00056164,120]
[321127813,1711901475060,-2279.79,0.00056164,120]
[321127814,1711901475069,-418.28489185,0.00056164,120]
[321127815,1711901475080,-500.0,0.00056164,120]
[321127816,1711901475089,-500.0,0.00056164,120]
[321127817,1711901475098,-500.0,0.00056164,120]
[321127818,1711901475107,-309.08441681,0.00056164,120]
[321127819,1711901475116,-500.0,0.00056164,120]
[321127820,1711901475125,-500.0,0.00056164,120]
[321127821,1711901475134,-500.0,0.00056164,120]
[321127822,1711901475143,-1846.66,0.00056164,120]
[321127823,1711901475153,-833.33,0.00056164,120]
[321127824,1711901475161,-500.0,0.00056164,120]
[321127825,1711901475170,-500.0,0.00056164,120]
[321127826,1711901475179,-5170.47,0.00056164,120]
[321127827,1711901475189,-2760.2,0.00056164,120]
[321127828,1711901475197,-1734.48,0.00056164,120]
[321127829,1711901475206,-8725.15,0.00056164,120]
[321127830,1711901475215,-1268.49,0.00056164,120]
[321127831,1711901475224,-500.0,0.00056164,120]
[321127832,1711901475233,-337.26,0.00056164,120]
[321127833,1711901475243,-1226.84,0.00056164,120]
[321127834,1711901475252,-4548.58,0.00056164,120]
[321127835,1711901475261,-500.0,0.00056164,120]
[321127836,1711901475271,-500.0,0.00056164,120]
[321127837,1711901475282,-1479.87,0.00056164,120]
[321127838,1711901475291,-500.0,0.00056164,120]
[321127839,1711901475301,-1697.5,0.00056164,120]
[321127840,1711901475310,-500.0,0.00056164,120]
[321127841,1711901475321,-2334.24,0.00056164,120]
[321127842,1711901475331,-500.0,0.00056164,120]
[321127843,1711901475340,-2071.17,0.00056164,120]
[321127844,1711901475350,-500.0,0.00056164,120]
[321127845,1711901475359,-500.0,0.00056164,120]
[321127846,1711901475368,-1307.1,0.00056164,120]
[321127847,1711901475378,-2606.99,0.00056164,120]
[321127848,1711901475387,-500.0,0.00056164,120]
[321127849,1711901475397,-500.0,0.00056164,120]
[321127850,1711901475407,-500.0,0.00056164,120]
[321127851,1711901475416,-500.0,0.00056164,120]
[321127852,1711901475426,-1383.62,0.00056164,120]
[321127853,1711901475436,-500.0,0.00056164,120]
[321127854,1711901475445,-3025.45,0.00056164,120]
[321127855,1711901475454,-500.0,0.00056164,120]
[321127856,1711901475464,-589.25,0.00056164,120]
[321127857,1711901475473,-5933.46,0.00056164,120]
[321127858,1711901475483,-500.0,0.00056164,120]
[321127859,1711901475493,-554.92,0.00056164,120]
[321127860,1711901475502,-4835.56,0.00056164,120]
[321127861,1711901475511,-1114.13,0.00056164,120]
[321127862,1711901475521,-500.0,0.00056164,120]
[321127863,1711901475531,-500.0,0.00056164,120]
[321127864,1711901475541,-1551.31,0.00056164,120]
[321127865,1711901475550,-500.0,0.00056164,120]
[321127866,1711901475560,-500.0,0.00056164,120]
[321127867,1711901475570,-1225.51,0.00056164,120]
[321127868,1711901475580,-500.0,0.00056164,120]
[321127869,1711901475590,-1642.24,0.00056164,120]
[321127870,1711901475599,-1400.86,0.00056164,120]
[321127871,1711901475613,-5107.76,0.00056164,120]
[321127872,1711901475623,-7108.28,0.00056164,120]
[321127873,1711901475633,-500.0,0.00056164,120]
[321127874,1711901475644,-500.0,0.00056164,120]
[321127875,1711901475654,-500.0,0.00056164,120]
[321127876,1711901475663,-500.0,0.00056164,120]
[321127877,1711901475672,-617.11135178,0.00056164,120]
[321127878,1711901475682,-1267.36,0.00056164,120]
[321127879,1711901475694,-500.0,0.00056164,120]
[321127880,1711901475704,-500.0,0.00056164,7]
[321127881,1711901475715,-1487.37,0.00056164,120]
[321127882,1711901475724,-977.83,0.00056164,120]
[321127883,1711901475735,-500.0,0.00056164,120]
[321127884,1711901475744,-500.0,0.00056164,120]
[321127885,1711901475754,-2308.38,0.00056164,120]
[321127886,1711901475764,-1843.78,0.00056164,120]
[321127887,1711901475774,-500.0,0.00056164,120]
[321127888,1711901475783,-500.0,0.00056164,120]
[321127889,1711901475793,-500.0,0.00056164,120]
[321127890,1711901475802,-500.0,0.00056164,120]
[321127891,1711901475812,-500.0,0.00056164,120]
[321127892,1711901475822,-1933.04,0.00056164,120]
[321127893,1711901475832,-500.0,0.00056164,120]
[321127894,1711901475842,-500.0,0.00056164,120]
[321127895,1711901475851,-500.0,0.00056164,120]
[321127896,1711901475861,-500.0,0.00056164,120]
[321127897,1711901475871,-925.52,0.00056164,120]
[321127898,1711901475880,-500.0,0.00056164,16]
[321127899,1711901475890,-4054.58,0.00056164,120]
[321127900,1711901475900,-3182.14,0.00056164,120]
[321127901,1711901475909,-500.0,0.00056164,120]
[321127902,1711901475920,-1336.62957728,0.00056164,120]
[321127903,1711901475929,-500.0,0.00056164,120]